Workbook

Sheet 管理端-移网质量类
A1: 2023年客服投诉清单各地市投诉率情况（管理端-移网质量类）
A2: 地市 | B2: 1日 | C2: 2日 | D2: 3日 | E2: 4日 | F2: 5日 | G2: 6日 | H2: 7日 | I2: 8日 | J2: 9日 | K2: 10日 | L2: 11日 | M2: 12日 | N2: 13日 | O2: 14日 | P2: 15日 | Q2: 16日 | R2: 17日 | S2: 18日 | T2: 19日 | U2: 20日 | V2: 21日 | W2: 投诉总量 | X2: 用户数 | Y2: 目前万投率 | Z2: 本月预测 | AA2: 目标值 | AB2: 与目标差距 | AC2: 地市
A3: 保定 | B3: 21 | C3: 38 | D3: 35 | E3: 28 | F3: 19 | G3: 36 | H3: 28 | I3: 25 | J3: 24 | K3: 36 | L3: 27 | M3: 21 | N3: 44 | O3: 32 | P3: 18 | Q3: 21 | R3: 14 | S3: 19 | T3: 26 | U3: 25 | V3: 22 | W3: 559 | X3: 248.74 | Y3: =W3/X3 -> 2.247326526 | Z3: =Y3*31/21 -> 3.317482014 | AA3: 4.3 | AB3: =Z3-AA3 -> -0.9825179859 | AC3: 保定
A4: 沧州 | B4: 29 | C4: 24 | D4: 22 | E4: 19 | F4: 30 | G4: 17 | H4: 35 | I4: 24 | J4: 29 | K4: 30 | L4: 18 | M4: 17 | N4: 21 | O4: 22 | P4: 20 | Q4: 23 | R4: 22 | S4: 26 | T4: 24 | U4: 14 | V4: 26 | W4: 492 | X4: 232.6 | Y4: =W4/X4 -> 2.115219261 | Z4: =Y4*31/21 -> 3.122466527 | AA4: 4.2 | AB4: =Z4-AA4 -> -1.077533473 | AC4: 沧州
A5: 承德 | B5: 18 | C5: 18 | D5: 11 | E5: 10 | F5: 9 | G5: 12 | H5: 10 | I5: 8 | J5: 10 | K5: 10 | L5: 3 | M5: 7 | N5: 10 | O5: 8 | P5: 10 | Q5: 4 | R5: 16 | S5: 8 | T5: 15 | U5: 15 | V5: 11 | W5: 223 | X5: 101.81 | Y5: 2.190354582 | Z5: 3.233380574 | AA5: 4.2 | AB5: -0.9666194265 | AC5: 承德
A6: 邯郸 | B6: 11 | C6: 13 | D6: 15 | E6: 12 | F6: 9 | G6: 40 | H6: 26 | I6: 27 | J6: 18 | K6: 29 | L6: 33 | M6: 30 | N6: 20 | O6: 39 | P6: 23 | Q6: 24 | R6: 39 | S6: 19 | T6: 33 | U6: 22 | V6: 31 | W6: 513 | X6: 272.58 | Y6: 1.882016289 | Z6: 2.778214522 | AA6: 4.1 | AB6: -1.321785478 | AC6: 邯郸
A7: 衡水 | B7: 12 | C7: 13 | D7: 14 | E7: 12 | F7: 18 | G7: 24 | H7: 23 | I7: 10 | J7: 16 | K7: 15 | L7: 16 | M7: 12 | N7: 12 | O7: 16 | P7: 9 | Q7: 17 | R7: 10 | S7: 12 | T7: 12 | U7: 14 | V7: 7 | W7: 294 | X7: 153.94 | Y7: 1.909835001 | Z7: 2.819280239 | AA7: 3.2 | AB7: -0.3807197609 | AC7: 衡水
A8: 廊坊 | B8: 6 | C8: 19 | D8: 10 | E8: 16 | F8: 23 | G8: 35 | H8: 31 | I8: 25 | J8: 23 | K8: 26 | L8: 22 | M8: 10 | N8: 30 | O8: 17 | P8: 40 | Q8: 14 | R8: 17 | S8: 9 | T8: 16 | U8: 22 | V8: 19 | W8: 430 | X8: 163.1 | Y8: 2.636419375 | Z8: 3.891857172 | AA8: 4.4 | AB8: -0.5081428279 | AC8: 廊坊
A9: 秦皇岛 | B9: 8 | C9: 15 | D9: 18 | E9: 14 | F9: 17 | G9: 12 | H9: 9 | I9: 10 | J9: 13 | K9: 12 | L9: 13 | M9: 20 | N9: 13 | O9: 10 | P9: 16 | Q9: 10 | R9: 10 | S9: 18 | T9: 12 | U9: 5 | V9: 10 | W9: 265 | X9: 103.12 | Y9: 2.569821567 | Z9: 3.793546123 | AA9: 4.1 | AB9: -0.3064538771 | AC9: 秦皇岛
A10: 石家庄 | B10: 58 | C10: 46 | D10: 54 | E10: 35 | F10: 23 | G10: 78 | H10: 87 | I10: 69 | J10: 64 | K10: 77 | L10: 84 | M10: 42 | N10: 65 | O10: 68 | P10: 74 | Q10: 92 | R10: 68 | S10: 66 | T10: 33 | U10: 61 | V10: 58 | W10: 1302 | X10: 364.87 | Y10: 3.568394223 | Z10: 5.267629567 | AA10: 4.5 | AB10: 0.7676295667 | AC10: 石家庄
A11: 唐山 | B11: 19 | C11: 35 | D11: 47 | E11: 23 | F11: 15 | G11: 35 | H11: 37 | I11: 23 | J11: 31 | K11: 43 | L11: 29 | M11: 21 | N11: 24 | O11: 35 | P11: 35 | Q11: 25 | R11: 31 | S11: 20 | T11: 13 | U11: 29 | V11: 35 | W11: 605 | X11: 243.52 | Y11: 2.484395532 | Z11: 3.667441024 | AA11: 4.3 | AB11: -0.6325589763 | AC11: 唐山
A12: 邢台 | B12: 14 | C12: 24 | D12: 16 | E12: 9 | F12: 20 | G12: 27 | H12: 28 | I12: 12 | J12: 23 | K12: 30 | L12: 22 | M12: 13 | N12: 29 | O12: 19 | P12: 20 | Q12: 21 | R12: 19 | S12: 13 | T12: 4 | U12: 19 | V12: 14 | W12: 396 | X12: 175.97 | Y12: 2.250383588 | Z12: 3.321994821 | AA12: 3.8 | AB12: -0.4780051795 | AC12: 邢台
A13: 雄安 | B13: 9 | C13: 10 | D13: 6 | E13: 7 | G13: 10 | H13: 2 | I13: 4 | J13: 6 | K13: 7 | L13: 4 | N13: 3 | O13: 4 | P13: 2 | Q13: 2 | R13: 5 | S13: 2 | T13: 3 | U13: 7 | V13: 4 | W13: 97 | X13: 25.59 | Y13: 3.790543181 | Z13: 5.595563743 | AA13: 5.7 | AB13: -0.1044362567 | AC13: 雄安
A14: 张家口 | B14: 9 | C14: 13 | D14: 19 | E14: 11 | F14: 5 | G14: 7 | H14: 10 | I14: 5 | J14: 6 | K14: 15 | L14: 12 | M14: 6 | N14: 5 | O14: 13 | P14: 7 | Q14: 10 | R14: 12 | S14: 4 | T14: 7 | U14: 11 | V14: 16 | W14: 203 | X14: 96.37 | Y14: 2.106464667 | Z14: 3.10954308 | AA14: 4.2 | AB14: -1.09045692 | AC14: 张家口
A15: 全省 | B15: 214 | C15: 268 | D15: 267 | E15: 196 | F15: 188 | G15: 333 | H15: 326 | I15: 242 | J15: 263 | K15: 330 | L15: 283 | M15: 199 | N15: 276 | O15: 283 | P15: 274 | Q15: 263 | R15: 263 | S15: 216 | T15: 198 | U15: 244 | V15: 253 | W15: 5379 | X15: 2182.21 | Y15: 2.464932339 | Z15: 3.638709644 | AA15: 4.2 | AB15: -0.5612903564 | AC15: 总计
X17: 每月取一次 | Y17: W4/X4 | Z17: Y列平均×月天数 | AA17: 月固定值，有单独表 | AB17: Z-AA

Sheet 管理端-重复投诉率
A1: 重复投诉率（1-21）
B2: 重复投诉工单数 | D2: 重复投诉率 | F2: 增量 | L2: 地市 | M2: 总工单数 | P2: 重复投诉工单数 | R2: 重复投诉率 | T2: 增量
A3: 地市 | B3: 3月截止19日 | C3: 3月截止21日 | D3: 3月截止19日 | E3: 3月截止21日 | F3: 重复投诉工单数 | G3: 重复投诉率 | L3: 地市 | M3: 3月截止19日 | N3: 3月截止21日 | O3: 地市 | P3: 3月截止19日 | Q3: 3月截止21日 | R3: 3月截止19日 | S3: 3月截止21日 | T3: 重复投诉工单数 | U3: 重复投诉率
A4: 唐山 | B4: 23 | C4: 32 | D4: 0.04251386322 | E4: 0.05289256198 | F4: 9 | G4: 0.01037869877 | L4: 保定 | M4: 512 | N4: 559 | O4: 保定 | P4: 37 | Q4: 38 | R4: =P4/M4 -> 0.072265625 | S4: =Q4/N4 -> 0.06797853309 | T4: =Q4-P4 -> 1 | U4: =S4-R4 -> -0.004287091905
A5: 邯郸 | B5: 24 | C5: 31 | D5: 0.05217391304 | E5: 0.0604288499 | F5: 7 | G5: 0.008254936859 | L5: 沧州 | M5: 452 | N5: 492 | O5: 沧州 | P5: 24 | Q5: 28 | R5: =P5/M5 -> 0.05309734513 | S5: =Q5/N5 -> 0.05691056911 | T5: =Q5-P5 -> 4 | U5: =S5-R5 -> 0.003813223973
A6: 衡水 | B6: 7 | C6: 9 | D6: 0.02564102564 | E6: 0.0306122449 | F6: 2 | G6: 0.004971219257 | L6: 承德 | M6: 197 | N6: 223 | O6: 承德 | P6: 12 | Q6: 14 | R6: 0.06091370558 | S6: 0.06278026906 | T6: 2 | U6: 0.001866563475
A7: 沧州 | B7: 24 | C7: 28 | D7: 0.05309734513 | E7: 0.05691056911 | F7: 4 | G7: 0.003813223973 | L7: 邯郸 | M7: 460 | N7: 513 | O7: 邯郸 | P7: 24 | Q7: 31 | R7: 0.05217391304 | S7: 0.0604288499 | T7: 7 | U7: 0.008254936859
A8: 廊坊 | B8: 13 | C8: 16 | D8: 0.03341902314 | E8: 0.03720930233 | F8: 3 | G8: 0.003790279189 | L8: 衡水 | M8: 273 | N8: 294 | O8: 衡水 | P8: 7 | Q8: 9 | R8: 0.02564102564 | S8: 0.0306122449 | T8: 2 | U8: 0.004971219257
A9: 石家庄 | B9: 66 | C9: 76 | D9: 0.05579036348 | E9: 0.05837173579 | F9: 10 | G9: 0.002581372308 | L9: 廊坊 | M9: 389 | N9: 430 | O9: 廊坊 | P9: 13 | Q9: 16 | R9: 0.03341902314 | S9: 0.03720930233 | T9: 3 | U9: 0.003790279189
A10: 承德 | B10: 12 | C10: 14 | D10: 0.06091370558 | E10: 0.06278026906 | F10: 2 | G10: 0.001866563475 | L10: 秦皇岛 | M10: 250 | N10: 265 | O10: 秦皇岛 | P10: 18 | Q10: 19 | R10: 0.072 | S10: 0.07169811321 | T10: 1 | U10: -0.0003018867925
A11: 邢台 | B11: 17 | C11: 19 | D11: 0.04683195592 | E11: 0.04797979798 | F11: 2 | G11: 0.001147842057 | L11: 石家庄 | M11: 1183 | N11: 1302 | O11: 石家庄 | P11: 66 | Q11: 76 | R11: 0.05579036348 | S11: 0.05837173579 | T11: 10 | U11: 0.002581372308
A12: 秦皇岛 | B12: 18 | C12: 19 | D12: 0.072 | E12: 0.07169811321 | F12: 1 | G12: -0.0003018867925 | L12: 唐山 | M12: 541 | N12: 605 | O12: 唐山 | P12: 23 | Q12: 32 | R12: 0.04251386322 | S12: 0.05289256198 | T12: 9 | U12: 0.01037869877
A13: 张家口 | B13: 9 | C13: 10 | D13: 0.05113636364 | E13: 0.04926108374 | F13: 1 | G13: -0.001875279893 | L13: 邢台 | M13: 363 | N13: 396 | O13: 邢台 | P13: 17 | Q13: 19 | R13: 0.04683195592 | S13: 0.04797979798 | T13: 2 | U13: 0.001147842057
A14: 保定 | B14: 37 | C14: 38 | D14: 0.072265625 | E14: 0.06797853309 | F14: 1 | G14: -0.004287091905 | L14: 雄安 | M14: 86 | N14: 97 | O14: 雄安 | P14: 6 | Q14: 6 | R14: 0.06976744186 | S14: 0.0618556701 | T14: 0 | U14: -0.007911771757
A15: 雄安 | B15: 6 | C15: 6 | D15: 0.06976744186 | E15: 0.0618556701 | F15: 0 | G15: -0.007911771757 | L15: 张家口 | M15: 176 | N15: 203 | O15: 张家口 | P15: 9 | Q15: 10 | R15: 0.05113636364 | S15: 0.04926108374 | T15: 1 | U15: -0.001875279893
A16: 全省 | B16: 256 | C16: 298 | D16: 0.0524375256 | E16: 0.05540063209 | F16: 42 | G16: 0.002963106483 | L16: 全省 | M16: 4882 | N16: 5379 | O16: 全省 | P16: 256 | Q16: 298 | R16: 0.0524375256 | S16: 0.05540063209 | T16: 42 | U16: 0.002963106483
P18: 重复投诉工单--单用户+地市在当月第二次及以上的投诉 | U18: S-R

Sheet 投诉处理时长、超时工单概况
A1: 超时工单情况（1-21） | G1: 平均处理时长（1-21） | N1: 超时工单情况 | S1: 平均处理时长
A2: 地市 | B2: 工单数 | C2: 超时工单数 | D2: 超时工单占比 | G2: 地市 | H2: 2月 | I2: 3月 | J2: 涨幅 | N2: 地市 | O2: 工单数 | P2: 超时工单数 | Q2: 超时工单占比 | S2: 地市 | T2: 2月 | U2: 3月 | V2: 涨幅
A3: 唐山 | B3: 605 | C3: 342 | D3: 0.5652892562 | G3: 唐山 | H3: 54.72958541 | I3: 67.67858678 | J3: 12.94900137 | N3: 保定 | O3: 559 | P3: 166 | Q3: =P3/O3 -> 0.2969588551 | S3: 保定 | T3: 43.53084022 | U3: 41.28117223 | V3: =U3-T3 -> -2.249667986
A4: 邢台 | B4: 396 | C4: 192 | D4: 0.4848484848 | G4: 邢台 | H4: 50.45467255 | I4: 56.39631944 | J4: 5.941646895 | N4: 沧州 | O4: 492 | P4: 131 | Q4: =P4/O4 -> 0.2662601626 | S4: 沧州 | T4: 41.91076309 | U4: 32.93440323 | V4: =U4-T4 -> -8.976359857
A5: 廊坊 | B5: 430 | C5: 196 | D5: 0.4558139535 | G5: 廊坊 | H5: 53.14784091 | I5: 55.52798902 | J5: 2.380148109 | N5: 承德 | O5: 223 | P5: 26 | Q5: 0.1165919283 | S5: 承德 | T5: 19.80491667 | U5: 24.35150847 | V5: 4.546591804
A6: 石家庄 | B6: 1302 | C6: 581 | D6: 0.4462365591 | G6: 邯郸 | H6: 57.91488599 | I6: 51.66355967 | J6: -6.25132632 | N6: 邯郸 | O6: 513 | P6: 218 | Q6: 0.4249512671 | S6: 邯郸 | T6: 57.91488599 | U6: 51.66355967 | V6: -6.25132632
A7: 邯郸 | B7: 513 | C7: 218 | D7: 0.4249512671 | G7: 秦皇岛 | H7: 39.51934986 | I7: 48.57904507 | J7: 9.059695213 | N7: 衡水 | O7: 294 | P7: 89 | Q7: 0.3027210884 | S7: 衡水 | T7: 37.77944523 | U7: 33.35998394 | V7: -4.419461296
A8: 秦皇岛 | B8: 265 | C8: 110 | D8: 0.4150943396 | G8: 张家口 | H8: 38.35979768 | I8: 45.00265326 | J8: 6.642855575 | N8: 廊坊 | O8: 430 | P8: 196 | Q8: 0.4558139535 | S8: 廊坊 | T8: 53.14784091 | U8: 55.52798902 | V8: 2.380148109
A9: 张家口 | B9: 203 | C9: 81 | D9: 0.3990147783 | G9: 石家庄 | H9: 52.52082709 | I9: 44.33035416 | J9: -8.190472933 | N9: 秦皇岛 | O9: 265 | P9: 110 | Q9: 0.4150943396 | S9: 秦皇岛 | T9: 39.51934986 | U9: 48.57904507 | V9: 9.059695213
A10: 雄安 | B10: 97 | C10: 35 | D10: 0.3608247423 | G10: 保定 | H10: 43.53084022 | I10: 41.28117223 | J10: -2.249667986 | N10: 石家庄 | O10: 1302 | P10: 581 | Q10: 0.4462365591 | S10: 石家庄 | T10: 52.52082709 | U10: 44.33035416 | V10: -8.190472933
A11: 衡水 | B11: 294 | C11: 89 | D11: 0.3027210884 | G11: 雄安 | H11: 33.56606436 | I11: 40.3742354 | J11: 6.808171039 | N11: 唐山 | O11: 605 | P11: 342 | Q11: 0.5652892562 | S11: 唐山 | T11: 54.72958541 | U11: 67.67858678 | V11: 12.94900137
A12: 保定 | B12: 559 | C12: 166 | D12: 0.2969588551 | G12: 衡水 | H12: 37.77944523 | I12: 33.35998394 | J12: -4.419461296 | N12: 邢台 | O12: 396 | P12: 192 | Q12: 0.4848484848 | S12: 邢台 | T12: 50.45467255 | U12: 56.39631944 | V12: 5.941646895
A13: 沧州 | B13: 492 | C13: 131 | D13: 0.2662601626 | G13: 沧州 | H13: 41.91076309 | I13: 32.93440323 | J13: -8.976359857 | N13: 雄安 | O13: 97 | P13: 35 | Q13: 0.3608247423 | S13: 雄安 | T13: 33.56606436 | U13: 40.3742354 | V13: 6.808171039
A14: 承德 | B14: 223 | C14: 26 | D14: 0.1165919283 | G14: 承德 | H14: 19.80491667 | I14: 24.35150847 | J14: 4.546591804 | N14: 张家口 | O14: 203 | P14: 81 | Q14: 0.3990147783 | S14: 张家口 | T14: 38.35979768 | U14: 45.00265326 | V14: 6.642855575
A15: 全省 | B15: 5379 | C15: 2167 | D15: 0.4028629857 | N15: 全省 | O15: 5379 | P15: 2167 | Q15: 0.4028629857
H20: 审核时间-受理时间
D21: 是否超时办结 | H21: 统计小时数
D22: 是表示超时
H23: 审核时间为空的情况----
H24: 已办结的按0计算
H25: 未办结的按归档时间-受理时间

Sheet 客户端-投诉问题解决满意度
A1: 投诉问题解决满意率（1-21）
A2: 地市 | B2: 投诉问题解决满意率 | C2: 达标值 | D2: 与达标值差距 | O2: 地市 | P2: 投诉满意率 | Q2: 达标值 | R2: 与达标值差距
A3: 衡水 | B3: 0.9225 | C3: 0.88 | D3: 0.0425 | O3: 保定 | P3: 0.9184 | Q3: 0.88 | R3: =P3-Q3 -> 0.0384
A4: 保定 | B4: 0.9184 | C4: 0.88 | D4: 0.0384 | O4: 沧州 | P4: 0.8966 | Q4: 0.88 | R4: =P4-Q4 -> 0.0166
A5: 承德 | B5: 0.9018 | C5: 0.88 | D5: 0.0218 | O5: 承德 | P5: 0.9018 | Q5: 0.88 | R5: 0.0218
A6: 邢台 | B6: 0.9016 | C6: 0.88 | D6: 0.0216 | O6: 邯郸 | P6: 0.8976 | Q6: 0.88 | R6: 0.0176
A7: 邯郸 | B7: 0.8976 | C7: 0.88 | D7: 0.0176 | O7: 衡水 | P7: 0.9225 | Q7: 0.88 | R7: 0.0425
A8: 沧州 | B8: 0.8966 | C8: 0.88 | D8: 0.0166 | O8: 廊坊 | P8: 0.8921 | Q8: 0.88 | R8: 0.0121
A9: 唐山 | B9: 0.8949 | C9: 0.88 | D9: 0.0149 | O9: 秦皇岛 | P9: 0.8879 | Q9: 0.88 | R9: 0.0079
A10: 廊坊 | B10: 0.8921 | C10: 0.88 | D10: 0.0121 | O10: 石家庄 | P10: 0.8803 | Q10: 0.88 | R10: 0.0003
A11: 秦皇岛 | B11: 0.8879 | C11: 0.88 | D11: 0.0079 | O11: 唐山 | P11: 0.8949 | Q11: 0.88 | R11: 0.0149
A12: 张家口 | B12: 0.8857 | C12: 0.88 | D12: 0.0057 | O12: 邢台 | P12: 0.9016 | Q12: 0.88 | R12: 0.0216
A13: 石家庄 | B13: 0.8803 | C13: 0.88 | D13: 0.0003 | O13: 雄安 | P13: 0.8033 | Q13: 0.88 | R13: -0.0767
A14: 雄安 | B14: 0.8033 | C14: 0.88 | D14: -0.0767 | O14: 张家口 | P14: 0.8857 | Q14: 0.88 | R14: 0.0057
A15: 全省 | B15: 0.8934 | C15: 0.88 | D15: 0.0134 | O15: 全省 | P15: 0.8934 | Q15: 0.88 | R15: 0.0134
O19: 满意率=满意/（满意+不满意+一般）

Sheet 客户端-投诉问题解决率
A1: 投诉问题解决率（1-21）
A2: 地市 | B2: 投诉问题解决率 | C2: 达标值 | D2: 与达标值差距 | P2: 地市 | Q2: 投诉问题解决率 | R2: 达标值 | S2: 与达标值差距
A3: 承德 | B3: 0.9016 | C3: 0.85 | D3: 0.0516 | P3: 保定 | Q3: 0.8719 | R3: 0.85 | S3: =Q3-R3 -> 0.0219
A4: 保定 | B4: 0.8719 | C4: 0.85 | D4: 0.0219 | P4: 沧州 | Q4: 0.8382 | R4: 0.85 | S4: =Q4-R4 -> -0.0118
A5: 衡水 | B5: 0.8667 | C5: 0.85 | D5: 0.0167 | P5: 承德 | Q5: 0.9016 | R5: 0.85 | S5: 0.0516
A6: 廊坊 | B6: 0.8478 | C6: 0.85 | D6: -0.0022 | P6: 邯郸 | Q6: 0.8296 | R6: 0.85 | S6: -0.0204
A7: 唐山 | B7: 0.8456 | C7: 0.85 | D7: -0.0044 | P7: 衡水 | Q7: 0.8667 | R7: 0.85 | S7: 0.0167
A8: 邢台 | B8: 0.8398 | C8: 0.85 | D8: -0.0102 | P8: 廊坊 | Q8: 0.8478 | R8: 0.85 | S8: -0.0022
A9: 沧州 | B9: 0.8382 | C9: 0.85 | D9: -0.0118 | P9: 秦皇岛 | Q9: 0.8 | R9: 0.85 | S9: -0.05
A10: 石家庄 | B10: 0.832 | C10: 0.85 | D10: -0.018 | P10: 石家庄 | Q10: 0.832 | R10: 0.85 | S10: -0.018
A11: 邯郸 | B11: 0.8296 | C11: 0.85 | D11: -0.0204 | P11: 唐山 | Q11: 0.8456 | R11: 0.85 | S11: -0.0044
A12: 秦皇岛 | B12: 0.8 | C12: 0.85 | D12: -0.05 | P12: 邢台 | Q12: 0.8398 | R12: 0.85 | S12: -0.0102
A13: 张家口 | B13: 0.7654 | C13: 0.85 | D13: -0.0846 | P13: 雄安 | Q13: 0.697 | R13: 0.85 | S13: -0.153
A14: 雄安 | B14: 0.697 | C14: 0.85 | D14: -0.153 | P14: 张家口 | Q14: 0.7654 | R14: 0.85 | S14: -0.0846
A15: 全省 | B15: 0.8388 | C15: 0.85 | D15: -0.0112 | P15: 全省 | Q15: 0.8388 | R15: 0.85 | S15: -0.0112

Sheet 客户端-投诉问题响应率
A1: 投诉问题响应率（1-21）
A2: 地市 | B2: 投诉问题响应率 | C2: 达标值 | D2: 与达标值差距 | M2: 地市 | N2: 投诉问题响应率 | O2: 达标值 | P2: 与达标值差距
A3: 廊坊 | B3: 0.9846 | C3: 0.96 | D3: 0.0246 | M3: 保定 | N3: 0.9724 | O3: 0.96 | P3: =N3-O3 -> 0.0124
A4: 保定 | B4: 0.9724 | C4: 0.96 | D4: 0.0124 | M4: 沧州 | N4: 0.9673 | O4: 0.96 | P4: =N4-O4 -> 0.0073
A5: 衡水 | B5: 0.9675 | C5: 0.96 | D5: 0.0075 | M5: 承德 | N5: 0.9623 | O5: 0.96 | P5: 0.0023
A6: 沧州 | B6: 0.9673 | C6: 0.96 | D6: 0.0073 | M6: 邯郸 | N6: 0.9464 | O6: 0.96 | P6: -0.0136
A7: 雄安 | B7: 0.9643 | C7: 0.96 | D7: 0.0043 | M7: 衡水 | N7: 0.9675 | O7: 0.96 | P7: 0.0075
A8: 承德 | B8: 0.9623 | C8: 0.96 | D8: 0.0023 | M8: 廊坊 | N8: 0.9846 | O8: 0.96 | P8: 0.0246
A9: 唐山 | B9: 0.953 | C9: 0.96 | D9: -0.007 | M9: 秦皇岛 | N9: 0.9455 | O9: 0.96 | P9: -0.0145
A10: 石家庄 | B10: 0.9528 | C10: 0.96 | D10: -0.0072 | M10: 石家庄 | N10: 0.9528 | O10: 0.96 | P10: -0.0072
A11: 邯郸 | B11: 0.9464 | C11: 0.96 | D11: -0.0136 | M11: 唐山 | N11: 0.953 | O11: 0.96 | P11: -0.007
A12: 秦皇岛 | B12: 0.9455 | C12: 0.96 | D12: -0.0145 | M12: 邢台 | N12: 0.9441 | O12: 0.96 | P12: -0.0159
A13: 邢台 | B13: 0.9441 | C13: 0.96 | D13: -0.0159 | M13: 雄安 | N13: 0.9643 | O13: 0.96 | P13: 0.0043
A14: 张家口 | B14: 0.9394 | C14: 0.96 | D14: -0.0206 | M14: 张家口 | N14: 0.9394 | O14: 0.96 | P14: -0.0206
A15: 全省 | B15: 0.9587 | C15: 0.96 | D15: -0.0013 | M15: 全省 | N15: 0.9587 | O15: 0.96 | P15: -0.0013

Sheet text
A1: 2023年3月截至21日移动网投诉情况统计： 管理端-移网质量类：投诉率：石家庄未达到目标值，雄安、石家庄、廊坊排名靠后；重复投诉率：唐山、邯郸、衡水增长较快。 客户端-移网网络体验：投诉问题解决满意率：雄安、石家庄、张家口较低，与达标值差距较大；投诉问题解决率：雄安、张家口、秦皇岛较低，与达标值差距较大；投诉问题响应率：张家口、邢台、秦皇岛较低，与达标值差距较大。 投诉处理时长、超时工单概况：超时工单：唐山、邢台、廊坊分公司超时工单占比较高，石家庄、唐山、邯郸超时工单数量较多。平均处理时长：本月相对较长的地市为唐山、邢台、廊坊；与2月比唐山时长增幅较大。
